bitfinex/quotes_SOLUSD_20241210
["timestamp","ask_amount","ask_price","bid_price","bid_amount"]
[1733794082895,20.0,218.74,218.69,22.21963986]
[1733794083101,7.8617,218.77,218.69,22.21963986]
[1733794083421,6.36719023,218.82,218.58,10.12549]
[1733794083422,6.2979,218.82,218.73,22.21963986]
[1733794084321,7.4401,218.88,218.77,22.21963986]
[1733794084496,7.4401,218.88,218.79,22.21963986]
[1733794084698,7.56259996,219.08,218.79,22.21963986]
[1733794084699,1.1419,218.92,218.84,22.21963986]
[1733794085017,1.1419,218.92,218.72,10.0]
[1733794085018,1.1419,218.92,218.82,22.21963986]
[1733794085592,1.1419,218.92,218.76,20.0]
[1733794085832,1.5638,218.95,218.85,22.21963986]
[1733794085989,1.5638,218.95,218.85,22.34512986]
[1733794086196,10.5399253,219.08,218.85,22.34512986]
[1733794086197,7.8617,219.07,218.85,22.34512986]
[1733794086597,7.8617,219.07,218.88,20.0]
[1733794086894,7.8617,219.07,218.94,22.21963986]
[1733794086895,1.1412,219.05,218.94,22.21963986]
[1733794087537,1.1412,219.05,218.95,22.21963986]
[1733794087843,7.8617,219.07,218.97,22.21963986]
[1733794088003,7.8617,219.07,218.95,22.21963986]
[1733794088522,7.8617,219.07,218.96,22.21963986]
[1733794089004,1.5638,219.07,219.0,22.21963986]
[1733794089338,0.5399253,219.08,219.01,35.79054028]
[1733794089339,0.0399253,219.08,219.01,35.79054028]
[1733794090611,0.0399253,219.08,218.99,35.79054028]
[1733794091241,0.0399253,219.08,219.01,35.79054028]
[1733794091709,0.0399253,219.08,219.0,35.79054028]
[1733794092521,20.0,219.11,219.0,35.79054028]
[1733794092724,19.6809253,219.11,219.0,35.79054028]
[1733794093712,19.6809253,219.11,218.99,35.79054028]
[1733794093917,1.26649,219.1,218.96,35.79054028]
[1733794094130,1.141,219.1,218.98,35.79054028]
[1733794095123,3.423,219.1,218.98,35.79054028]
[1733794095336,21.141,219.1,218.98,35.79054028]
[1733794095506,21.141,219.1,219.01,35.79054028]
[1733794095835,1.141,219.1,219.01,35.79054028]
[1733794096411,1.141,219.1,219.0,35.79054028]
[1733794098114,1.78214847,219.13,219.04,35.79054028]
[1733794098311,7.8617,219.14,219.07,35.79054028]
[1733794098705,7.8617,219.14,219.01,35.91603028]
[1733794098706,1.5638,219.14,219.1,35.79054028]
[1733794098909,1.5638,219.14,219.01,35.91603028]
[1733794098910,1.5638,219.14,219.09,35.79054028]
[1733794099128,1.5638,219.14,219.07,35.79054028]
[1733794099325,1.5638,219.14,219.08,35.79054028]
[1733794099717,1.5638,219.14,219.01,35.91603028]
[1733794099718,1.5638,219.14,219.07,35.79054028]
[1733794100634,1.5638,219.14,219.05,35.79054028]
[1733794101231,1.1408,219.13,219.04,35.79054028]
[1733794101814,1.1408,219.13,219.05,35.79054028]
[1733794102638,1.1408,219.13,219.06,35.79054028]
[1733794102814,1.1408,219.13,219.05,35.79054028]
[1733794103544,1.5638,219.14,219.09,35.79054028]
[1733794103911,1.5638,219.14,219.08,35.79054028]
[1733794104446,1.5638,219.14,219.09,35.79054028]
[1733794104654,1.6006,219.23,219.13,35.79054028]
[1733794104935,1.6006,219.23,219.16,35.79054028]
[1733794105822,1.6006,219.23,219.06,10.0]
[1733794105823,1.6006,219.23,219.15,35.79054028]
[1733794106019,1.6006,219.23,219.06,20.0]
[1733794106020,1.1404,219.22,219.12,35.79054028]
[1733794107019,1.1404,219.22,219.13,35.79054028]
[1733794108445,1.1404,219.22,219.15,35.79054028]
[1733794109122,1.1404,219.22,219.14,35.79054028]
[1733794109335,1.1404,219.22,219.13,21.99731724]
[1733794109531,1.1404,219.22,219.09,21.99731724]
[1733794109934,1.1404,219.22,218.98,21.4163]
[1733794109935,20.0,219.2,219.05,21.99731724]
[1733794110317,0.12549,219.19,219.05,21.99731724]
[1733794110521,20.12549,219.19,219.04,21.99731724]
[1733794110727,20.0,219.15,219.03,21.99731724]
[1733794111435,20.0,219.15,219.02,21.99731724]
[1733794111646,1.1408,219.14,219.03,21.99731724]
[1733794111826,1.1408,219.14,219.04,21.99731724]
[1733794112425,1.505,219.14,219.0,21.99731724]
[1733794112853,1.505,219.14,219.01,21.99731724]
[1733794113836,1.505,219.14,218.97,6.0276]
[1733794113837,2.6458,219.14,219.04,21.99731724]
[1733794116426,2.6458,219.14,219.06,21.99731724]
[1733794116626,1.505,219.14,219.06,21.99731724]
[1733794117049,1.505,219.14,219.04,21.99731724]
[1733794117246,1.505,219.14,219.03,21.99731724]
[1733794117451,1.505,219.14,219.0,20.0]
[1733794117452,1.1408,219.13,219.0,21.99731724]
[1733794117624,1.1408,219.13,219.01,21.99731724]
[1733794117841,1.1408,219.13,219.03,21.99731724]
[1733794118026,1.505,219.14,219.09,21.99731724]
[1733794118331,1.505,219.2,219.13,21.99731724]
[1733794118532,6.5095,219.24,219.18,21.99731724]
[1733794119258,6.5095,219.24,219.17,21.99731724]
[1733794120143,6.5095,219.24,219.18,21.99731724]
[1733794120961,6.5095,219.24,219.14,21.99731724]
[1733794121456,2.5095,219.24,219.15,21.99731724]
[1733794122854,20.0,219.23,219.14,21.99731724]
[1733794125165,20.0,219.23,219.15,21.99731724]
[1733794125780,20.0,219.23,219.14,21.99731724]
[1733794125980,20.0,219.23,219.13,21.99731724]
[1733794127384,1.505,219.26,219.19,21.99731724]
[1733794127583,1.505,219.26,219.2,21.99731724]
[1733794127891,1.505,219.26,219.18,21.99731724]
[1733794128254,1.505,219.26,219.16,21.99731724]
[1733794128455,1.505,219.26,219.14,21.99731724]
[1733794128771,21.505,219.26,219.14,21.99731724]
[1733794129268,1.1402,219.25,219.14,21.99731724]
[1733794129468,1.1402,219.25,219.11,0.12549]
[1733794129469,1.1402,219.25,219.17,21.99731724]
[1733794129691,1.505,219.26,219.21,21.99731724]
[1733794129907,0.5399253,219.3,219.24,21.99731724]
[1733794130184,0.5399253,219.3,219.26,21.99731724]
[1733794130357,0.5399253,219.3,219.27,21.99731724]
[1733794130560,0.5399253,219.3,219.28,21.99731724]
[1733794131070,0.5399253,219.3,219.29,22.12280724]
[1733794131766,0.5399253,219.3,219.23,28.19731724]
[1733794131767,0.5399253,219.3,219.26,21.99731724]
[1733794132173,0.5399253,219.3,219.29,21.99731724]
[1733794132370,1.5406,219.37,219.29,21.99731724]
[1733794132371,0.5805253,219.37,219.29,21.99731724]
[1733794133293,0.5805253,219.37,219.3,21.99731724]
[1733794134090,0.5805253,219.37,219.31,21.99731724]
[1733794134266,0.5805253,219.37,219.3,21.99731724]
[1733794134777,0.5805253,219.37,219.29,21.99731724]
[1733794135402,0.5805253,219.37,219.3,21.99731724]
[1733794136991,1.83062714,219.45,219.37,0.12549]
[1733794137297,1.5731,219.51,219.37,0.12549]
[1733794137298,1.5731,219.51,219.44,21.99731724]
[1733794137470,0.5399253,219.52,219.47,21.99731724]
[1733794138082,0.5399253,219.52,219.46,21.99731724]
[1733794138283,0.5399253,219.52,219.45,21.99731724]
[1733794138605,0.5399253,219.52,219.43,21.99731724]
[1733794138770,0.5399253,219.52,219.45,21.99731724]
[1733794139493,0.1785253,219.56,219.45,21.99731724]
[1733794139689,6.1517,219.57,219.45,21.99731724]
[1733794139868,20.0,219.54,219.45,21.99731724]
[1733794140276,20.0,219.54,219.4,21.99731724]
[1733794140712,21.1387,219.53,219.34,21.99731724]
[1733794140887,21.1387,219.53,219.37,21.99731724]
[1733794141399,21.1387,219.53,219.31,8.1992]
[1733794141400,1.55,219.52,219.34,21.99731724]
[1733794142096,1.55,219.52,219.33,21.99731724]
[1733794142299,1.1389,219.5,219.33,21.99731724]
[1733794142596,6.4585,219.49,219.33,21.99731724]
[1733794142899,1.55,219.44,219.27,21.99731724]
[1733794143102,0.12549,219.4,219.21,6.5799]
[1733794143315,0.12549,219.4,219.21,21.99731724]
[1733794143316,20.0,219.38,219.21,21.99731724]
[1733794144410,1.1396,219.37,219.21,21.99731724]
[1733794144612,1.1396,219.37,219.22,21.99731724]
[1733794144776,6.4585,219.41,219.34,21.99731724]
[1733794145114,6.4585,219.46,219.36,21.99731724]
[1733794145296,6.4585,219.46,219.39,21.99731724]
[1733794145606,6.4585,219.46,219.4,21.99731724]
[1733794145968,1.55,219.5,219.4,21.99731724]
[1733794146706,1.55,219.5,219.37,21.99731724]
[1733794147573,1.55,219.5,219.36,21.99731724]
[1733794147775,20.0,219.48,219.37,21.99731724]
[1733794149490,1.1391,219.47,219.34,21.99731724]
[1733794149810,19.6391,219.48,219.34,21.99731724]
[1733794150694,19.6391,219.48,219.32,21.99731724]
[1733794150905,19.6391,219.48,219.32,21.89731724]
[1733794151223,19.6391,219.48,219.24,16.0603]
[1733794151224,1.26459,219.47,219.31,21.99731724]
[1733794151587,1.26459,219.47,219.32,21.99731724]
[1733794152804,1.26459,219.47,219.25,312.0]
[1733794152805,1.1391,219.47,219.36,21.99731724]
[1733794153376,1.1391,219.47,219.35,21.99731724]
[1733794153582,1.1391,219.47,219.32,21.99731724]
[1733794153777,1.1391,219.47,219.33,21.99731724]
[1733794154296,19.2782,219.48,219.33,21.99731724]
[1733794155002,19.2782,219.48,219.35,21.99731724]
[1733794155391,1.1391,219.47,219.39,21.99731724]
[1733794155587,1.1391,219.47,219.37,21.99731724]
[1733794155778,1.1391,219.47,219.36,21.99731724]
[1733794156115,1.1391,219.47,219.34,21.99731724]
[1733794156281,1.1391,219.47,219.32,21.99731724]
[1733794156481,1.1391,219.47,219.33,21.99731724]
[1733794156895,1.1391,219.47,219.31,21.99731724]
[1733794157084,21.1391,219.47,219.27,20.0]
[1733794157404,1.1392,219.44,219.29,21.99731724]
[1733794157606,1.1392,219.44,219.3,21.99731724]
[1733794157772,1.1392,219.44,219.31,21.99731724]
[1733794157975,1.1392,219.44,219.33,21.99731724]
[1733794158201,1.1392,219.44,219.36,21.99731724]
[1733794158590,1.55,219.5,219.36,21.99731724]
[1733794158783,1.139,219.48,219.36,21.99731724]
[1733794159109,1.139,219.48,219.37,21.99731724]
[1733794159401,1.139,219.48,219.36,21.99731724]
[1733794159608,21.139,219.48,219.33,21.99731724]
[1733794159914,21.139,219.48,219.31,312.0]
[1733794159915,21.139,219.48,219.32,21.99731724]
[1733794160090,21.139,219.48,219.33,21.99731724]
[1733794161584,21.139,219.48,219.32,21.99731724]
[1733794161975,20.0,219.46,219.3,21.99731724]
[1733794162178,20.0,219.46,219.26,0.12549]
[1733794162179,20.0,219.46,219.29,21.99731724]
[1733794162378,20.0,219.46,219.28,21.99731724]
[1733794162595,20.0,219.46,219.31,21.99731724]
[1733794162789,20.12549,219.47,219.32,21.99731724]
[1733794163011,1.1392,219.45,219.3,21.99731724]
[1733794163412,20.0,219.41,219.28,21.99731724]
[1733794164015,6.5738,219.37,219.19,21.99731724]
[1733794164221,20.0,219.34,219.19,21.99731724]
[1733794164596,20.0,219.34,219.2,21.99731724]
[1733794165310,1.1398,219.33,219.18,21.99731724]
[1733794165731,21.1398,219.33,219.17,21.99731724]
[1733794166226,21.1398,219.33,219.16,21.99731724]
[1733794167115,21.1398,219.33,219.17,21.99731724]
[1733794167503,21.1398,219.33,219.18,21.99731724]
[1733794168320,8.94960515,219.36,219.19,110.30533755]
[1733794168509,0.12549,219.35,219.29,2.71014374]
[1733794168709,0.12549,219.35,219.29,0.12604374]
[1733794169427,0.12549,219.35,219.21,42.55286282]
[1733794169602,0.12549,219.33,219.17,10.0]
[1733794169798,0.12549,219.31,219.14,10.0]
[1733794170030,0.12549,219.29,219.1,10.0]
[1733794170209,10.12549,219.27,219.08,10.0]
[1733794170415,0.12549,219.23,219.06,10.0]
[1733794170740,0.12549,219.23,219.08,10.0]
[1733794171335,0.12549,219.23,219.05,10.0]
[1733794171527,6.1907,219.22,219.05,10.0]
[1733794173335,20.0,219.19,219.05,10.0]
[1733794174231,1.624,219.18,219.03,10.0]
[1733794174432,1.624,219.18,219.01,10.0]
[1733794174638,1.624,219.18,218.97,10.5399253]
[1733794174639,10.12549,219.17,218.97,10.5399253]
[1733794174840,20.0,219.1,218.97,10.5399253]
[1733794175517,20.0,219.1,218.97,0.5399253]
[1733794176416,20.0,219.1,219.0,10.0]
[1733794176624,6.1907,219.13,219.02,10.0]
[1733794178942,6.1907,219.13,218.98,10.0]
[1733794179148,20.0,219.1,218.98,10.0]
[1733794179546,20.0,219.1,218.97,0.5399253]
[1733794180129,1.5714,219.09,218.97,0.5399253]
[1733794180950,0.12549,219.08,218.97,0.5399253]
[1733794182858,20.12549,219.08,218.97,0.5399253]
[1733794183064,21.80512622,219.08,218.97,0.5399253]
[1733794183267,1.5714,219.09,218.97,0.5399253]
[1733794184639,0.12549,219.08,218.97,0.5399253]
[1733794184835,10.12549,219.08,218.97,0.5399253]
[1733794185267,20.12549,219.04,218.97,2.53e-05]
[1733794185562,20.0,219.02,218.97,2.53e-05]
[1733794185768,1.5714,219.01,218.97,2.53e-05]
[1733794187675,0.12549,219.0,218.84,10.0]
[1733794188044,20.0,218.96,218.82,10.0]
[1733794188250,0.12549,218.95,218.82,10.0]
[1733794188555,20.12549,218.95,218.82,10.0]
[1733794189356,20.0,218.96,218.84,10.0]
[1733794190186,6.3043,218.99,218.9,10.0]
[1733794191152,1.5714,219.01,218.9,10.0]
[1733794191553,1.5714,219.01,218.92,10.0]
[1733794191747,1.5714,219.01,218.9,10.0]
[1733794194742,1.5714,219.01,218.88,10.0]
[1733794194968,1.5714,219.01,218.87,6.1898]
[1733794195469,0.12549,219.0,218.87,6.1898]
[1733794197070,1.5714,219.01,218.89,10.0]
[1733794197452,1.83284231,219.04,218.91,10.0]
[1733794197668,6.3043,219.05,218.91,10.0]
[1733794198076,8.12487165,219.05,218.91,10.0]
[1733794198666,20.0,219.02,218.91,10.0]
[1733794200476,20.0,219.02,218.89,10.0]
[1733794201375,0.12549,219.01,218.87,6.1898]
[1733794201566,0.12549,219.01,218.85,1.6503]
[1733794202283,20.0,219.01,218.86,10.0]
[1733794202448,1.5714,219.11,219.04,10.0]
[1733794202655,83.0,219.26,218.97,7.8401]
[1733794202656,3.40732064,219.18,219.06,10.0]
[1733794202858,6.3043,219.23,219.08,10.0]
[1733794203059,6.3043,219.23,219.1,10.0]
[1733794203359,8.14549627,219.23,219.1,10.0]
[1733794203670,1.84119627,219.23,219.09,6.1898]
[1733794203987,10.0,219.21,219.04,16.1898]
[1733794204146,10.0,219.21,219.04,318.1898]
[1733794204350,10.0,219.19,219.04,318.1898]
[1733794204550,10.0,219.19,219.04,6.1898]
[1733794204966,0.12549,219.15,218.98,6.1898]
[1733794205685,0.12549,219.12,218.98,6.1898]
[1733794205853,10.0,219.17,218.98,6.1898]
[1733794205854,6.3043,219.21,219.05,10.0]
[1733794206055,6.3043,219.21,219.07,10.0]
[1733794206289,228.28297422,219.34,219.09,10.0]
[1733794206290,6.3043,219.26,219.09,10.0]
[1733794207174,6.3043,219.26,219.05,10.0]
[1733794207379,6.3043,219.26,219.04,21.99731724]
[1733794207380,20.0,219.18,219.0,10.0]
[1733794207577,20.0,219.16,219.0,10.0]
[1733794208083,20.0,219.16,218.98,16.1898]
[1733794208261,20.0,219.14,218.98,16.1898]
[1733794209087,20.0,219.14,219.0,10.0]
[1733794209257,20.0,219.17,219.01,10.0]
[1733794210291,20.0,219.17,219.03,10.0]
[1733794210473,0.12549,219.19,219.03,10.0]
[1733794210976,0.12549,219.19,219.03,322.0]
[1733794211162,0.12549,219.19,219.05,10.0]
[1733794211895,0.12549,219.17,219.01,10.0]
[1733794212075,20.0,219.16,219.01,10.0]
[1733794212276,0.12549,219.15,219.01,10.0]
[1733794212457,20.0,219.16,219.03,10.0]
[1733794212664,20.0,219.18,219.03,10.0]
[1733794212859,0.12549,219.17,219.03,10.0]
[1733794213054,1.781355,219.23,219.06,10.0]
[1733794213260,10.0,219.28,219.08,10.0]
[1733794213461,10.0,219.3,219.1,10.0]
[1733794213671,10.0,219.3,219.12,10.0]
[1733794213869,6.1459,219.31,219.17,10.0]
[1733794214563,10.0,219.34,219.19,10.0]
[1733794215097,1.8477314,219.35,219.19,10.0]
[1733794215383,10.0,219.36,219.19,10.0]
[1733794215959,1.77396023,219.37,219.23,10.0]
[1733794216159,1.524,219.38,219.18,10.0]
[1733794216356,14.91044929,219.38,219.18,10.0]
[1733794216581,10.0,219.36,219.16,10.0]
[1733794217156,10.0,219.34,219.14,10.0]
[1733794217358,10.0,219.32,219.14,10.0]
[1733794217582,0.12549,219.28,219.12,10.0]
[1733794217965,0.12549,219.26,219.11,6.4348]
[1733794218171,20.0,219.25,219.11,6.4348]
[1733794218394,0.12549,219.24,219.11,6.4348]
[1733794218575,0.12549,219.24,219.06,6.4348]
[1733794218782,0.12549,219.22,219.06,6.4348]
[1733794218993,0.12549,219.19,219.06,6.4348]
[1733794219177,20.0,219.18,219.06,6.4348]
[1733794219506,20.0,219.18,219.0,35.73481704]
[1733794219507,20.0,219.16,219.0,10.0]
[1733794219675,0.12549,219.15,218.99,6.4348]
[1733794220264,0.12549,219.15,218.97,10.0]
[1733794220466,20.0,219.09,218.93,16.4348]
[1733794220780,0.12549,219.08,218.93,6.4348]
[1733794221294,0.12549,219.03,218.86,16.4348]
[1733794221463,0.12549,219.01,218.86,16.4348]
[1733794221663,0.12549,219.01,218.86,6.4348]
[1733794221871,0.12549,219.01,218.85,10.0]
[1733794222185,1.91178399,219.01,218.82,11.6334]
[1733794222387,0.12549,219.01,218.82,11.6334]
[1733794222592,0.12549,219.01,218.79,42.16961704]
[1733794222593,20.0,218.96,218.8,10.0]
[1733794222799,20.0,218.96,218.82,10.0]
[1733794222985,20.0,218.96,218.84,10.0]
[1733794223305,0.12549,219.01,218.84,10.0]
[1733794223306,0.12549,219.01,218.85,10.0]
[1733794223509,0.12549,219.03,218.85,10.0]
[1733794224393,1.96148061,219.03,218.83,10.0]
[1733794224606,1.96148061,219.03,218.85,10.0]
[1733794224873,1.96148061,219.03,218.83,10.0]
[1733794225118,1.96148061,219.03,218.85,10.0]
[1733794225304,1.96148061,219.03,218.88,10.0]
[1733794225624,10.0,219.06,218.88,10.0]
[1733794225800,10.0,219.07,218.86,10.0]
[1733794226116,11.524,219.1,218.89,10.0]
[1733794226804,0.12549,219.04,218.84,10.0]
[1733794227023,0.12549,219.04,218.89,10.0]
[1733794227305,0.12549,219.09,218.91,10.0]
[1733794228721,20.0,219.07,218.89,10.0]
[1733794228927,0.12549,219.06,218.87,10.0]
[1733794229484,0.12549,219.04,218.87,10.0]
[1733794229994,20.0,219.03,218.85,10.0]
[1733794230199,0.12549,219.02,218.85,10.0]
[1733794230809,20.0,219.03,218.88,10.0]
[1733794230998,1.81306575,219.04,218.93,10.0]
[1733794231207,1.524,219.1,218.93,10.0]
[1733794232095,1.524,219.1,218.97,10.0]
[1733794232804,6.1459,219.14,218.99,10.0]
[1733794233116,6.1459,219.14,219.04,10.0]
[1733794233425,1.5331,219.17,219.06,10.0]
[1733794233723,1.5331,219.17,219.03,10.0]
[1733794234831,1.5331,219.17,218.92,6.0618]
[1733794234832,20.12549,219.16,218.98,10.0]
[1733794234998,30.12549,219.16,218.96,10.0]
[1733794235320,0.12549,219.16,219.02,10.0]
[1733794236918,1.5331,219.17,219.02,10.0]
[1733794237097,1.5331,219.17,219.06,10.0]
[1733794237296,6.2104,219.21,219.08,10.0]
[1733794238296,8.01676816,219.21,219.08,10.0]
[1733794238701,20.0,219.18,219.08,10.0]
[1733794239100,20.0,219.18,219.06,10.0]
[1733794239530,20.0,219.18,219.08,10.0]
[1733794240509,20.0,219.18,219.1,10.0]
[1733794240702,20.0,219.18,219.08,10.0]
[1733794240909,20.0,219.18,219.1,10.0]
[1733794241316,20.0,219.18,219.12,10.0]
[1733794241635,20.0,219.18,219.06,42.36561704]
[1733794241636,6.3045,219.27,219.15,10.0]
[1733794241803,6.3045,219.27,219.19,10.0]
[1733794242008,1.5942,219.3,219.19,10.0]
[1733794243533,21.5942,219.3,219.17,10.0]
[1733794244120,21.5942,219.3,219.19,10.0]
[1733794244513,1.5942,219.3,219.19,10.0]
[1733794245012,6.3045,219.33,219.08,1.5692]
[1733794245013,6.3045,219.33,219.23,10.0]
[1733794246115,10.0,219.32,219.12,10.0]
[1733794246437,0.12549,219.31,219.12,10.0]
[1733794246744,0.12549,219.32,219.14,10.0]
[1733794246956,20.0,219.3,219.12,10.0]
[1733794247318,1.5942,219.25,219.08,10.0]
[1733794247636,1.5942,219.25,219.06,16.6308]
[1733794247834,1.5942,219.25,219.08,10.0]
[1733794248739,1.5942,219.25,219.11,10.0]
[1733794250542,1.5942,219.25,219.13,10.0]
[1733794250721,1.5942,219.31,219.16,10.0]
[1733794250919,1.5942,219.31,219.18,10.0]
[1733794251236,1.5942,219.31,219.2,10.0]
[1733794251741,1.5942,219.31,219.16,10.0]
[1733794253337,20.0,219.3,219.16,10.0]
[1733794254824,20.0,219.3,219.14,10.0]
[1733794255024,20.12549,219.29,219.12,10.0]
[1733794255225,0.12549,219.27,219.07,10.0]
[1733794256334,0.12549,219.27,219.09,10.0]
[1733794257865,20.0,219.23,219.08,10.0]
[1733794258350,1.6275,219.21,219.04,10.0]
[1733794258524,1.6275,219.21,219.02,1.5692]
[1733794258525,0.12549,219.2,219.02,10.0]
[1733794258727,0.12549,219.18,219.02,10.0]
[1733794258952,26.3135,219.17,218.98,10.0]
[1733794259265,20.0,219.14,219.0,10.0]
[1733794259730,20.0,219.14,218.98,10.0]
[1733794260550,0.12549,219.13,218.98,10.0]
[1733794261151,20.0,219.14,219.0,10.0]
[1733794261530,0.12549,219.13,218.98,10.0]
[1733794261853,0.12549,219.13,218.96,10.0]
[1733794262029,1.6275,219.12,218.96,10.0]
[1733794262440,1.6275,219.12,218.95,6.0199]
[1733794262441,0.12549,219.11,218.95,6.0199]
[1733794262643,0.12549,219.11,218.94,10.0]
[1733794262836,0.12549,219.11,218.92,10.0]
[1733794263246,20.12549,219.11,218.94,10.0]
[1733794263759,20.12549,219.11,218.97,10.0]
[1733794263957,0.12549,219.11,218.97,10.0]
[1733794264531,0.12549,219.11,218.93,10.0]
[1733794264736,0.12549,219.11,218.62,50.67360945]
[1733794264737,0.12549,219.06,218.91,10.0]
[1733794265048,20.0,219.05,218.87,10.0]
[1733794265357,0.12549,219.02,218.83,10.0]
[1733794265657,20.0,219.03,218.83,10.0]
[1733794265658,0.12549,218.97,218.83,10.0]
[1733794266260,20.0,218.98,218.9,10.0]
[1733794266462,20.0,218.98,218.8,41.8233959]
[1733794266463,20.0,218.98,218.92,10.0]
[1733794266633,1.6275,219.04,218.92,10.0]
[1733794268248,1.6275,219.04,218.96,10.0]
[1733794268576,1.78482374,219.05,218.96,10.0]
[1733794268889,6.3135,219.06,218.96,10.0]
[1733794269054,8.13415513,219.06,218.92,10.0]
[1733794269366,8.13415513,219.06,218.9,10.0]
[1733794269572,20.0,219.03,218.9,10.0]
[1733794270664,20.0,219.03,218.88,10.0]
[1733794271066,0.12549,219.02,218.86,10.0]
[1733794271267,0.12549,219.02,218.88,10.0]
[1733794271771,0.12549,219.02,218.86,10.0]
[1733794271951,1.6495,219.0,218.84,10.0]
[1733794272452,0.12549,218.99,218.84,10.0]
[1733794272655,0.12549,218.99,218.82,10.0]
[1733794272876,0.12549,218.99,218.8,10.0]
[1733794273076,20.0,218.95,218.8,10.0]
[1733794273375,20.0,218.95,218.76,10.5399253]
[1733794273376,20.0,218.93,218.76,10.5399253]
[1733794273547,0.12549,218.9,218.76,0.5399253]
[1733794273758,0.12549,218.88,218.76,0.5399253]
[1733794274075,20.0,218.84,218.76,0.5399253]
[1733794274375,0.12549,218.83,218.76,2.53e-05]
[1733794274675,0.12549,218.81,218.76,2.53e-05]
[1733794274853,0.12549,218.81,218.65,10.0]
[1733794275054,0.12549,218.81,218.57,6.4881]
[1733794275055,0.12549,218.81,218.63,10.0]
[1733794275273,20.0,218.69,218.61,10.0]
[1733794275493,0.12549,218.79,218.61,10.0]
[1733794275791,0.12549,218.77,218.61,10.0]
[1733794276398,20.0,218.76,218.61,10.0]
[1733794276599,0.12549,218.73,218.57,10.0]
[1733794276800,0.12549,218.68,218.55,10.0]
[1733794276974,0.12549,218.68,218.54,0.5399253]
[1733794277892,20.0,218.68,218.54,0.5399253]
[1733794278493,20.0,218.68,218.54,2.53e-05]
[1733794278796,20.0,218.68,218.45,10.0]
[1733794278797,1.6495,218.62,218.45,10.0]
[1733794278996,1.6495,218.62,218.42,10.0]
[1733794279202,1.6495,218.62,218.44,10.0]
[1733794279572,1.6495,218.62,218.5,10.0]
[1733794279891,0.12549,218.61,218.46,10.0]
[1733794280076,20.12549,218.61,218.44,10.0]
[1733794280286,20.12549,218.61,218.4,10.0]
[1733794280582,30.12549,218.61,218.4,10.0]
[1733794280785,20.0,218.57,218.42,10.0]
[1733794281796,6.019,218.6,218.48,10.0]
[1733794282002,3.42817679,218.62,218.48,10.0]
[1733794282198,3.42817679,218.62,218.5,10.0]
[1733794282374,6.019,218.68,218.52,10.0]
[1733794282699,7.82234751,218.68,218.52,10.0]
[1733794283267,7.82234751,218.68,218.54,10.0]
[1733794283675,7.82234751,218.68,218.52,35.8034959]
[1733794283676,7.82234751,218.68,218.48,10.0]
[1733794283886,7.82234751,218.68,218.46,10.0]
[1733794284092,10.0,218.67,218.46,10.0]
[1733794284483,7.82234751,218.68,218.49,10.0]
[1733794284691,20.0,218.65,218.49,10.0]
[1733794284923,20.12549,218.64,218.41,10.0]
[1733794285200,0.12549,218.57,218.37,16.4881]
[1733794285377,0.12549,218.55,218.35,10.0]
[1733794285581,20.0,218.5,218.35,10.0]
[1733794286315,20.0,218.5,218.4,10.0]
[1733794286821,20.0,218.5,218.35,35.8034959]
[1733794286822,20.0,218.5,218.36,10.0]